[Event "Titled Tuesday Blitz December 13 Late 2022"]
[White "Arkell, Keith C"]
[Black "Meduri, Aakaash"]
[WhiteFideId "400270"]
[BlackFideId "2032252"]
[WhiteElo "2356"]
[BlackElo "2113"]
[Result "1-0"]
[Round "10"]
[TimeControl "180+1"]
[Date "2022.12.14"]
[WhiteClock "0:01:45"]
[BlackClock "0:00:27"]

1. d4 {[%clk 0:03:00]}  d5 {[%clk 0:02:59]} 2. Nf3 {[%clk 0:03:01]}  Nf6 {[%clk 0:02:59]} 3. c4 {[%clk 0:03:01]}  c6 {[%clk 0:02:59]} 4. Nc3 {[%clk 0:03:01]}  e6 {[%clk 0:02:59]} 5. cxd5 {[%clk 0:03:01]}  exd5 {[%clk 0:02:59]} 6. Qc2 {[%clk 0:03:00]}  g6 {[%clk 0:02:58]} 7. Bg5 {[%clk 0:02:57]}  Be7 {[%clk 0:02:56]} 8. Bxf6 {[%clk 0:02:56]}  Bxf6 {[%clk 0:02:56]} 9. e3 {[%clk 0:02:57]}  Bf5 {[%clk 0:02:55]} 10. Bd3 {[%clk 0:02:57]}  Bxd3 {[%clk 0:02:56]} 11. Qxd3 {[%clk 0:02:58]}  O-O {[%clk 0:02:56]} 12. b4 {[%clk 0:02:59]}  a6 {[%clk 0:02:38]} 13. O-O {[%clk 0:02:58]}  Nd7 {[%clk 0:02:38]} 14. a4 {[%clk 0:02:58]}  Nb6 {[%clk 0:02:38]} 15. b5 {[%clk 0:02:58]}  Nc4 {[%clk 0:02:38]} 16. bxc6 {[%clk 0:02:58]}  bxc6 {[%clk 0:02:38]} 17. Nd2 {[%clk 0:02:58]}  Nxd2 {[%clk 0:02:33]} 18. Qxd2 {[%clk 0:02:59]}  Qd6 {[%clk 0:02:29]} 19. Rac1 {[%clk 0:02:57]}  Rab8 {[%clk 0:02:28]} 20. Ne2 {[%clk 0:02:54]}  Rb3 {[%clk 0:02:24]} 21. Qc2 {[%clk 0:02:52]}  Ra3 {[%clk 0:01:32]} 22. Qxc6 {[%clk 0:02:51]}  Rd8 {[%clk 0:01:32]} 23. Qxd6 {[%clk 0:02:46]}  Rxd6 {[%clk 0:01:33]} 24. Ra1 {[%clk 0:02:46]}  Rxa1 {[%clk 0:01:31]} 25. Rxa1 {[%clk 0:02:47]}  Rc6 {[%clk 0:01:31]} 26. Rc1 {[%clk 0:02:43]}  Rb6 {[%clk 0:01:32]} 27. Nc3 {[%clk 0:02:42]}  Rd6 {[%clk 0:01:23]} 28. Kf1 {[%clk 0:02:41]}  Bd8 {[%clk 0:01:20]} 29. Rb1 {[%clk 0:02:34]}  Ba5 {[%clk 0:01:17]} 30. Ne2 {[%clk 0:02:34]}  g5 {[%clk 0:01:11]} 31. g4 {[%clk 0:02:27]}  Rc6 {[%clk 0:01:04]} 32. Rb8+ {[%clk 0:02:26]}  Kg7 {[%clk 0:01:04]} 33. Ra8 {[%clk 0:02:25]}  Bb4 {[%clk 0:01:00]} 34. Ng3 {[%clk 0:02:21]}  a5 {[%clk 0:00:57]} 35. Nf5+ {[%clk 0:02:21]}  Kf6 {[%clk 0:00:57]} 36. Kg2 {[%clk 0:02:21]}  Ke6 {[%clk 0:00:47]} 37. Re8+ {[%clk 0:02:17]}  Kf6 {[%clk 0:00:45]} 38. Rh8 {[%clk 0:02:15]}  Kg6 {[%clk 0:00:44]} 39. Rd8 {[%clk 0:02:15]}  Rc2 {[%clk 0:00:41]} 40. Rxd5 {[%clk 0:01:53]}  Be1 {[%clk 0:00:41]} 41. Rd6+ {[%clk 0:01:54]}  f6 {[%clk 0:00:42]} 42. Rd7 {[%clk 0:01:54]}  Rxf2+ {[%clk 0:00:32]} 43. Kg1 {[%clk 0:01:54]}  Rxf5 {[%clk 0:00:32]} 44. gxf5+ {[%clk 0:01:55]}  Kxf5 {[%clk 0:00:33]} 45. Re7 {[%clk 0:01:51]}  Bb4 {[%clk 0:00:30]} 46. Re8 {[%clk 0:01:49]}  Kg4 {[%clk 0:00:30]} 47. Kg2 {[%clk 0:01:46]}  f5 {[%clk 0:00:29]} 48. h3+ {[%clk 0:01:46]}  Kh5 {[%clk 0:00:27]} 49. d5 {[%clk 0:01:45]} 1-0


[Site "https://www.chess.com"]

[Event "Titled Tuesday Blitz December 13 Late 2022"]
[White "Bernabeu Lopez, Carlos Javier"]
[Black "Melikyan, Gnel"]
[WhiteFideId "2235366"]
[BlackFideId "54109990"]
[WhiteElo "2324"]
[BlackElo "2138"]
[Result "0-1"]
[Round "10"]
[TimeControl "180+1"]
[Date "2022.12.13"]
[WhiteClock "0:01:31"]
[BlackClock "0:00:28"]

1. e4 {[%clk 0:02:56]}  e5 {[%clk 0:02:52]} 2. Nf3 {[%clk 0:02:56]}  Nf6 {[%clk 0:02:52]} 3. Nc3 {[%clk 0:02:55]}  Nc6 {[%clk 0:02:51]} 4. a3 {[%clk 0:02:54]}  Bc5 {[%clk 0:02:49]} 5. Nxe5 {[%clk 0:02:55]}  Nxe5 {[%clk 0:02:48]} 6. d4 {[%clk 0:02:55]}  Bd6 {[%clk 0:02:39]} 7. dxe5 {[%clk 0:02:53]}  Bxe5 {[%clk 0:02:39]} 8. Bd3 {[%clk 0:02:54]}  d6 {[%clk 0:02:34]} 9. h3 {[%clk 0:02:51]}  O-O {[%clk 0:02:31]} 10. O-O {[%clk 0:02:51]}  h6 {[%clk 0:02:29]} 11. Be3 {[%clk 0:02:49]}  Re8 {[%clk 0:02:28]} 12. Qf3 {[%clk 0:02:48]}  Bd7 {[%clk 0:02:26]} 13. Bf4 {[%clk 0:02:38]}  Bxc3 {[%clk 0:02:20]} 14. bxc3 {[%clk 0:02:37]}  Bc6 {[%clk 0:02:21]} 15. Rfe1 {[%clk 0:02:34]}  Qe7 {[%clk 0:02:20]} 16. Qg3 {[%clk 0:02:33]}  Nh5 {[%clk 0:02:02]} 17. Qg4 {[%clk 0:02:34]}  Nxf4 {[%clk 0:02:01]} 18. Qxf4 {[%clk 0:02:35]}  Qe5 {[%clk 0:02:01]} 19. Qxe5 {[%clk 0:02:35]}  Rxe5 {[%clk 0:02:00]} 20. f3 {[%clk 0:02:34]}  Rae8 {[%clk 0:01:54]} 21. Kf2 {[%clk 0:02:33]}  Rc5 {[%clk 0:01:54]} 22. c4 {[%clk 0:02:33]}  Bd7 {[%clk 0:01:45]} 23. Ke3 {[%clk 0:02:28]}  f5 {[%clk 0:01:44]} 24. Kd4 {[%clk 0:02:26]}  f4 {[%clk 0:01:43]} 25. h4 {[%clk 0:02:24]}  Ree5 {[%clk 0:01:38]} 26. Rh1 {[%clk 0:02:18]}  Kf7 {[%clk 0:01:31]} 27. Rag1 {[%clk 0:02:14]}  Ra5 {[%clk 0:01:29]} 28. Ra1 {[%clk 0:02:11]}  Be6 {[%clk 0:01:21]} 29. Kc3 {[%clk 0:02:07]}  Rec5 {[%clk 0:01:14]} 30. Kb4 {[%clk 0:02:05]}  Ra6 {[%clk 0:01:10]} 31. Rhb1 {[%clk 0:02:02]}  Rac6 {[%clk 0:01:08]} 32. e5 {[%clk 0:01:35]}  dxe5 {[%clk 0:00:50]} 33. Re1 {[%clk 0:01:33]}  Bxc4 {[%clk 0:00:44]} 34. Be4 {[%clk 0:01:33]}  a5+ {[%clk 0:00:33]} 35. Kc3 {[%clk 0:01:31]}  Bd5+ {[%clk 0:00:30]} 36. Kd3 {[%clk 0:01:31]}  Rc3+ {[%clk 0:00:28]} 0-1


[Site "https://www.chess.com"]

[Event "Titled Tuesday Blitz December 13 Late 2022"]
[White "Bjelobrk, Igor"]
[Black "Rodriguez Fontecha, Marcos"]
[WhiteFideId "4300726"]
[BlackFideId "2256576"]
[WhiteElo "2335"]
[BlackElo "2263"]
[Result "1-0"]
[Round "10"]
[TimeControl "180+1"]
[Date "2022.12.13"]
[WhiteClock "0:00:13"]
[BlackClock "0:00:02"]

1. Nf3 {[%clk 0:02:57]}  d5 {[%clk 0:02:58]} 2. g3 {[%clk 0:02:56]}  Nf6 {[%clk 0:02:58]} 3. Bg2 {[%clk 0:02:56]}  Bf5 {[%clk 0:02:58]} 4. O-O {[%clk 0:02:57]}  e6 {[%clk 0:02:58]} 5. c4 {[%clk 0:02:57]}  c6 {[%clk 0:02:58]} 6. cxd5 {[%clk 0:02:57]}  exd5 {[%clk 0:02:58]} 7. d3 {[%clk 0:02:58]}  Bd6 {[%clk 0:02:57]} 8. Qb3 {[%clk 0:02:57]}  Qb6 {[%clk 0:02:56]} 9. Qc2 {[%clk 0:02:57]}  O-O {[%clk 0:02:55]} 10. Nc3 {[%clk 0:02:57]}  Re8 {[%clk 0:02:54]} 11. Re1 {[%clk 0:02:53]}  Nbd7 {[%clk 0:02:53]} 12. e4 {[%clk 0:02:53]}  dxe4 {[%clk 0:02:50]} 13. dxe4 {[%clk 0:02:52]}  Bg6 {[%clk 0:02:50]} 14. Nh4 {[%clk 0:02:47]}  Rad8 {[%clk 0:02:25]} 15. Nxg6 {[%clk 0:02:46]}  hxg6 {[%clk 0:02:25]} 16. Be3 {[%clk 0:02:42]}  Qc7 {[%clk 0:02:22]} 17. Rad1 {[%clk 0:02:09]}  Ne5 {[%clk 0:02:18]} 18. f3 {[%clk 0:01:47]}  Nc4 {[%clk 0:02:00]} 19. Bf2 {[%clk 0:01:47]}  Bf8 {[%clk 0:01:56]} 20. b3 {[%clk 0:01:45]}  Nb6 {[%clk 0:01:50]} 21. Rxd8 {[%clk 0:01:36]}  Rxd8 {[%clk 0:01:49]} 22. e5 {[%clk 0:01:30]}  Nfd5 {[%clk 0:01:41]} 23. Nxd5 {[%clk 0:01:30]}  Nxd5 {[%clk 0:01:37]} 24. e6 {[%clk 0:01:25]}  Bb4 {[%clk 0:00:56]} 25. exf7+ {[%clk 0:01:21]}  Qxf7 {[%clk 0:00:57]} 26. Rd1 {[%clk 0:01:19]}  Re8 {[%clk 0:00:48]} 27. Qd3 {[%clk 0:00:50]}  Nc3 {[%clk 0:00:44]} 28. Ra1 {[%clk 0:00:45]}  Nd5 {[%clk 0:00:22]} 29. f4 {[%clk 0:00:39]}  Kh7 {[%clk 0:00:22]} 30. a3 {[%clk 0:00:36]}  Ba5 {[%clk 0:00:21]} 31. Rd1 {[%clk 0:00:29]}  Bb6 {[%clk 0:00:20]} 32. Bxd5 {[%clk 0:00:28]}  Bxf2+ {[%clk 0:00:19]} 33. Kxf2 {[%clk 0:00:27]}  cxd5 {[%clk 0:00:20]} 34. Qxd5 {[%clk 0:00:27]}  Qc7 {[%clk 0:00:20]} 35. Qd3 {[%clk 0:00:20]}  Qb6+ {[%clk 0:00:19]} 36. Kg2 {[%clk 0:00:19]}  Qc6+ {[%clk 0:00:19]} 37. Kh3 {[%clk 0:00:19]}  Qc8+ {[%clk 0:00:18]} 38. Qd7 {[%clk 0:00:19]}  Qb8 {[%clk 0:00:13]} 39. Rd6 {[%clk 0:00:17]}  Rf8 {[%clk 0:00:11]} 40. Qe7 {[%clk 0:00:15]}  Qc8+ {[%clk 0:00:09]} 41. Rd7 {[%clk 0:00:14]}  Rg8 {[%clk 0:00:09]} 42. b4 {[%clk 0:00:14]}  g5 {[%clk 0:00:06]} 43. f5 {[%clk 0:00:13]}  Qc4 {[%clk 0:00:04]} 44. Qxg5 {[%clk 0:00:12]}  Qf1+ {[%clk 0:00:04]} 45. Kh4 {[%clk 0:00:11]}  Qe2 {[%clk 0:00:01]} 46. h3 {[%clk 0:00:12]}  Qf3 {[%clk 0:00:01]} 47. Qg6+ {[%clk 0:00:11]}  Kh8 {[%clk 0:00:01]} 48. Qg4 {[%clk 0:00:11]}  Qxg4+ {[%clk 0:00:01]} 49. Kxg4 {[%clk 0:00:11]}  Rb8 {[%clk 0:00:02]} 50. Rc7 {[%clk 0:00:12]}  Kh7 {[%clk 0:00:01]} 51. Kg5 {[%clk 0:00:12]}  Kg8 {[%clk 0:00:01]} 52. Kg6 {[%clk 0:00:12]}  Kh8 {[%clk 0:00:02]} 53. Rxg7 {[%clk 0:00:12]}  a5 {[%clk 0:00:02]} 54. b5 {[%clk 0:00:12]}  a4 {[%clk 0:00:02]} 55. b6 {[%clk 0:00:12]}  Rc8 {[%clk 0:00:02]} 56. Rxb7 {[%clk 0:00:12]}  Rc6+ {[%clk 0:00:02]} 57. Kg5 {[%clk 0:00:13]}  Rc8 {[%clk 0:00:02]} 58. Rc7 {[%clk 0:00:13]}  Rg8+ {[%clk 0:00:02]} 59. Kf4 {[%clk 0:00:13]} 1-0


[Site "https://www.chess.com"]

[Event "Titled Tuesday Blitz December 13 Late 2022"]
[White "Buchenau, Frank"]
[Black "Omelja, Artem"]
[WhiteFideId "4604350"]
[BlackFideId "14119846"]
[WhiteElo "2157"]
[BlackElo "2404"]
[Result "0-1"]
[Round "10"]
[TimeControl "180+1"]
[Date "2022.12.14"]
[WhiteClock "0:00:01"]
[BlackClock "0:00:37"]

1. e4 {[%clk 0:02:57]}  a6 {[%clk 0:02:58]} 2. d4 {[%clk 0:02:56]}  b5 {[%clk 0:02:58]} 3. Bd3 {[%clk 0:02:55]}  Bb7 {[%clk 0:02:58]} 4. Nf3 {[%clk 0:02:54]}  e6 {[%clk 0:02:59]} 5. O-O {[%clk 0:02:53]}  c5 {[%clk 0:02:59]} 6. c3 {[%clk 0:02:53]}  Nf6 {[%clk 0:02:56]} 7. Re1 {[%clk 0:02:52]}  Be7 {[%clk 0:02:56]} 8. Nbd2 {[%clk 0:02:52]}  d6 {[%clk 0:02:52]} 9. Nf1 {[%clk 0:02:49]}  Nbd7 {[%clk 0:02:49]} 10. Ng3 {[%clk 0:02:49]}  O-O {[%clk 0:02:48]} 11. Bd2 {[%clk 0:02:35]}  Rc8 {[%clk 0:02:46]} 12. e5 {[%clk 0:02:24]}  Nd5 {[%clk 0:02:42]} 13. Ne4 {[%clk 0:02:20]}  dxe5 {[%clk 0:02:40]} 14. dxe5 {[%clk 0:02:20]}  c4 {[%clk 0:02:38]} 15. Bc2 {[%clk 0:02:19]}  g6 {[%clk 0:02:35]} 16. Bh6 {[%clk 0:02:17]}  Re8 {[%clk 0:02:35]} 17. Bg5 {[%clk 0:02:06]}  Qc7 {[%clk 0:02:21]} 18. Bxe7 {[%clk 0:02:01]}  Rxe7 {[%clk 0:02:22]} 19. Qd4 {[%clk 0:01:52]}  Nc5 {[%clk 0:02:18]} 20. Nf6+ {[%clk 0:01:45]}  Kg7 {[%clk 0:02:13]} 21. Qh4 {[%clk 0:01:42]}  h6 {[%clk 0:02:05]} 22. Nxd5 {[%clk 0:01:30]}  Bxd5 {[%clk 0:02:03]} 23. Nd4 {[%clk 0:01:22]}  Rd7 {[%clk 0:02:02]} 24. Re3 {[%clk 0:01:21]}  Qd8 {[%clk 0:01:45]} 25. Qf4 {[%clk 0:01:12]}  Qg5 {[%clk 0:01:42]} 26. Qxg5 {[%clk 0:01:09]}  hxg5 {[%clk 0:01:43]} 27. Rae1 {[%clk 0:00:59]}  Rb8 {[%clk 0:01:38]} 28. Rg3 {[%clk 0:00:49]}  b4 {[%clk 0:01:37]} 29. Rxg5 {[%clk 0:00:45]}  bxc3 {[%clk 0:01:37]} 30. bxc3 {[%clk 0:00:44]}  Rb2 {[%clk 0:01:36]} 31. h4 {[%clk 0:00:36]}  Nd3 {[%clk 0:01:34]} 32. Re3 {[%clk 0:00:21]}  Nf4 {[%clk 0:01:15]} 33. f3 {[%clk 0:00:15]}  Bb7 {[%clk 0:01:07]} 34. Rg4 {[%clk 0:00:15]}  Nd5 {[%clk 0:01:03]} 35. Re1 {[%clk 0:00:12]}  Nxc3 {[%clk 0:01:04]} 36. h5 {[%clk 0:00:08]}  Rxd4 {[%clk 0:00:55]} 37. Rxd4 {[%clk 0:00:09]}  Rxc2 {[%clk 0:00:55]} 38. hxg6 {[%clk 0:00:08]}  Ne2+ {[%clk 0:00:40]} 39. Rxe2 {[%clk 0:00:05]}  Rxe2 {[%clk 0:00:41]} 40. gxf7 {[%clk 0:00:05]}  Bd5 {[%clk 0:00:39]} 41. Kf1 {[%clk 0:00:02]}  Rxe5 {[%clk 0:00:37]} 42. Rf4 {[%clk 0:00:01]}  Rf5 {[%clk 0:00:37]} 0-1


[Site "https://www.chess.com"]

[Event "Titled Tuesday Blitz December 13 Late 2022"]
[White "Crevatin, Leo"]
[Black "Andrews, Todd"]
[WhiteFideId "1726307"]
[BlackFideId "2012456"]
[WhiteElo "2190"]
[BlackElo "2395"]
[Result "1/2-1/2"]
[Round "10"]
[TimeControl "180+1"]
[Date "2022.12.13"]
[WhiteClock "0:00:06"]
[BlackClock "0:00:07"]

1. d4 {[%clk 0:02:52]}  Nf6 {[%clk 0:02:59]} 2. Bf4 {[%clk 0:02:52]}  d5 {[%clk 0:02:54]} 3. e3 {[%clk 0:02:52]}  e6 {[%clk 0:02:52]} 4. Nf3 {[%clk 0:02:52]}  Bd6 {[%clk 0:02:53]} 5. Ne5 {[%clk 0:02:52]}  O-O {[%clk 0:02:51]} 6. Bd3 {[%clk 0:02:51]}  c5 {[%clk 0:02:51]} 7. c3 {[%clk 0:02:51]}  Qc7 {[%clk 0:02:47]} 8. Nd2 {[%clk 0:02:46]}  Nbd7 {[%clk 0:02:47]} 9. Nxd7 {[%clk 0:02:43]}  Bxd7 {[%clk 0:02:45]} 10. Bg5 {[%clk 0:02:37]}  Be7 {[%clk 0:02:40]} 11. O-O {[%clk 0:02:33]}  Rfe8 {[%clk 0:02:24]} 12. f4 {[%clk 0:02:29]}  b5 {[%clk 0:02:21]} 13. Nf3 {[%clk 0:02:10]}  Ne4 {[%clk 0:02:14]} 14. Bxe7 {[%clk 0:02:09]}  Rxe7 {[%clk 0:02:15]} 15. Ne5 {[%clk 0:01:53]}  Be8 {[%clk 0:02:15]} 16. Ng4 {[%clk 0:01:38]}  Rc8 {[%clk 0:02:02]} 17. Rc1 {[%clk 0:01:37]}  a5 {[%clk 0:01:55]} 18. Nf2 {[%clk 0:01:36]}  f5 {[%clk 0:01:49]} 19. Nxe4 {[%clk 0:01:35]}  dxe4 {[%clk 0:01:37]} 20. Be2 {[%clk 0:01:34]}  Rd8 {[%clk 0:01:25]} 21. Qc2 {[%clk 0:01:24]}  c4 {[%clk 0:01:10]} 22. b3 {[%clk 0:01:24]}  h6 {[%clk 0:00:52]} 23. bxc4 {[%clk 0:01:23]}  bxc4 {[%clk 0:00:53]} 24. Rb1 {[%clk 0:01:22]}  g5 {[%clk 0:00:52]} 25. g3 {[%clk 0:01:22]}  Rg7 {[%clk 0:00:52]} 26. Kh1 {[%clk 0:01:21]}  gxf4 {[%clk 0:00:50]} 27. gxf4 {[%clk 0:01:21]}  Kh7 {[%clk 0:00:47]} 28. Rg1 {[%clk 0:01:20]}  Rdd7 {[%clk 0:00:46]} 29. Qb2 {[%clk 0:01:19]}  Qd8 {[%clk 0:00:37]} 30. Rxg7+ {[%clk 0:00:47]}  Rxg7 {[%clk 0:00:37]} 31. Rg1 {[%clk 0:00:48]}  Rxg1+ {[%clk 0:00:27]} 32. Kxg1 {[%clk 0:00:49]}  Qh4 {[%clk 0:00:26]} 33. Qd2 {[%clk 0:00:49]}  Bh5 {[%clk 0:00:23]} 34. Bxh5 {[%clk 0:00:39]}  Qxh5 {[%clk 0:00:23]} 35. Kf1 {[%clk 0:00:19]}  Qf3+ {[%clk 0:00:22]} 36. Qf2 {[%clk 0:00:13]}  Qd1+ {[%clk 0:00:21]} 37. Kg2 {[%clk 0:00:13]}  a4 {[%clk 0:00:16]} 38. h3 {[%clk 0:00:11]}  a3 {[%clk 0:00:16]} 39. Kh2 {[%clk 0:00:11]}  Qc1 {[%clk 0:00:14]} 40. Qh4 {[%clk 0:00:08]}  Qb2+ {[%clk 0:00:12]} 41. Kh1 {[%clk 0:00:07]}  Qb1+ {[%clk 0:00:11]} 42. Kh2 {[%clk 0:00:03]}  Qxa2+ {[%clk 0:00:12]} 43. Kg3 {[%clk 0:00:04]}  Qe2 {[%clk 0:00:07]} 44. Qe7+ {[%clk 0:00:04]}  Kh8 {[%clk 0:00:04]} 45. Qf8+ {[%clk 0:00:04]}  Kh7 {[%clk 0:00:05]} 46. Qf7+ {[%clk 0:00:04]}  Kh8 {[%clk 0:00:05]} 47. Qf8+ {[%clk 0:00:05]}  Kh7 {[%clk 0:00:06]} 48. Qf7+ {[%clk 0:00:06]}  Kh8 {[%clk 0:00:07]} 49. Qf8+ {[%clk 0:00:06]} 1/2-1/2


[Site "https://www.chess.com"]

[Event "Titled Tuesday Blitz December 13 Late 2022"]
[White "Curtis, John"]
[Black "Floresvillar Gonzalez, Luis Migu"]
[WhiteFideId "3200256"]
[BlackFideId "5100542"]
[WhiteElo "2203"]
[BlackElo "2040"]
[Result "1-0"]
[Round "10"]
[TimeControl "180+1"]
[Date "2022.12.14"]
[WhiteClock "0:00:37"]
[BlackClock "0:01:12"]

1. e4 {[%clk 0:03:00]}  c6 {[%clk 0:02:58]} 2. d4 {[%clk 0:03:00]}  d5 {[%clk 0:02:59]} 3. exd5 {[%clk 0:03:01]}  cxd5 {[%clk 0:02:58]} 4. c4 {[%clk 0:03:01]}  Nf6 {[%clk 0:02:57]} 5. Nc3 {[%clk 0:03:01]}  e6 {[%clk 0:02:57]} 6. Nf3 {[%clk 0:02:59]}  Bb4 {[%clk 0:02:56]} 7. c5 {[%clk 0:02:55]}  O-O {[%clk 0:02:54]} 8. Bd3 {[%clk 0:02:43]}  Ne4 {[%clk 0:02:53]} 9. Qc2 {[%clk 0:02:40]}  f5 {[%clk 0:02:53]} 10. O-O {[%clk 0:02:24]}  Nc6 {[%clk 0:02:53]} 11. Ne2 {[%clk 0:02:13]}  Bd7 {[%clk 0:02:46]} 12. a3 {[%clk 0:02:13]}  Ba5 {[%clk 0:02:46]} 13. b4 {[%clk 0:02:02]}  Bc7 {[%clk 0:02:45]} 14. b5 {[%clk 0:01:43]}  Ne7 {[%clk 0:02:44]} 15. Bf4 {[%clk 0:01:35]}  Rc8 {[%clk 0:02:42]} 16. Bxc7 {[%clk 0:01:34]}  Qxc7 {[%clk 0:02:36]} 17. Ne5 {[%clk 0:01:34]}  Ng6 {[%clk 0:02:27]} 18. Nxg6 {[%clk 0:01:33]}  hxg6 {[%clk 0:02:27]} 19. f3 {[%clk 0:01:33]}  Nf6 {[%clk 0:02:20]} 20. Qb2 {[%clk 0:01:26]}  g5 {[%clk 0:02:16]} 21. a4 {[%clk 0:01:25]}  g6 {[%clk 0:02:15]} 22. a5 {[%clk 0:01:20]}  Kg7 {[%clk 0:02:04]} 23. b6 {[%clk 0:01:20]}  axb6 {[%clk 0:01:59]} 24. axb6 {[%clk 0:01:20]}  Qb8 {[%clk 0:01:57]} 25. Ra7 {[%clk 0:01:18]}  Rh8 {[%clk 0:01:56]} 26. g3 {[%clk 0:01:13]}  Nh5 {[%clk 0:01:54]} 27. Bb5 {[%clk 0:00:58]}  Bxb5 {[%clk 0:01:39]} 28. Qxb5 {[%clk 0:00:57]}  Rc6 {[%clk 0:01:36]} 29. Qxc6 {[%clk 0:00:54]}  Nxg3 {[%clk 0:01:25]} 30. Nxg3 {[%clk 0:00:49]}  f4 {[%clk 0:01:25]} 31. Qd7+ {[%clk 0:00:49]}  Kh6 {[%clk 0:01:24]} 32. Rxb7 {[%clk 0:00:48]}  Qf8 {[%clk 0:01:22]} 33. Re1 {[%clk 0:00:43]}  fxg3 {[%clk 0:01:21]} 34. Kg2 {[%clk 0:00:44]}  gxh2 {[%clk 0:01:20]} 35. Rh1 {[%clk 0:00:44]}  g4 {[%clk 0:01:17]} 36. Rxh2+ {[%clk 0:00:44]}  Kg5 {[%clk 0:01:17]} 37. Qe7+ {[%clk 0:00:38]}  Qxe7 {[%clk 0:01:15]} 38. Rxe7 {[%clk 0:00:38]}  gxf3+ {[%clk 0:01:15]} 39. Kg3 {[%clk 0:00:37]}  Rxh2 {[%clk 0:01:14]} 40. Kxh2 {[%clk 0:00:37]}  Kf5 {[%clk 0:01:13]} 41. Rxe6 {[%clk 0:00:36]}  Kxe6 {[%clk 0:01:12]} 42. b7 {[%clk 0:00:37]}  f2 {[%clk 0:01:12]} 43. Kg2 {[%clk 0:00:37]} 1-0


[Site "https://www.chess.com"]

[Event "Titled Tuesday Blitz December 13 Late 2022"]
[White "Dudzinski, Pawel"]
[Black "Estrada Nieto, Julian"]
[WhiteFideId "1117890"]
[BlackFideId "5101018"]
[WhiteElo "2099"]
[BlackElo "2195"]
[Result "1-0"]
[Round "10"]
[TimeControl "180+1"]
[Date "2022.12.14"]
[WhiteClock "0:00:11"]
[BlackClock "0:00:10"]

1. e4 {[%clk 0:03:00]}  e5 {[%clk 0:02:59]} 2. Nc3 {[%clk 0:02:59]}  Nf6 {[%clk 0:02:58]} 3. g3 {[%clk 0:03:00]}  d5 {[%clk 0:02:57]} 4. exd5 {[%clk 0:03:01]}  Nxd5 {[%clk 0:02:57]} 5. Bg2 {[%clk 0:03:01]}  Nxc3 {[%clk 0:02:58]} 6. bxc3 {[%clk 0:03:02]}  Nc6 {[%clk 0:02:58]} 7. Nf3 {[%clk 0:03:03]}  Bc5 {[%clk 0:02:57]} 8. O-O {[%clk 0:03:03]}  O-O {[%clk 0:02:55]} 9. Re1 {[%clk 0:03:03]}  Bg4 {[%clk 0:02:53]} 10. h3 {[%clk 0:03:01]}  Bh5 {[%clk 0:02:53]} 11. g4 {[%clk 0:02:57]}  Bg6 {[%clk 0:02:53]} 12. Rb1 {[%clk 0:02:57]}  Bb6 {[%clk 0:02:48]} 13. d3 {[%clk 0:02:57]}  f5 {[%clk 0:02:47]} 14. gxf5 {[%clk 0:02:50]}  Rxf5 {[%clk 0:02:28]} 15. Be3 {[%clk 0:02:41]}  Qf6 {[%clk 0:02:20]} 16. d4 {[%clk 0:01:49]}  exd4 {[%clk 0:02:00]} 17. Nxd4 {[%clk 0:01:47]}  Nxd4 {[%clk 0:01:52]} 18. Bxd4 {[%clk 0:01:44]}  Qg5 {[%clk 0:01:13]} 19. Qg4 {[%clk 0:01:39]}  Bxd4 {[%clk 0:01:05]} 20. cxd4 {[%clk 0:01:32]}  Qxg4 {[%clk 0:01:05]} 21. hxg4 {[%clk 0:01:33]}  Rf4 {[%clk 0:01:05]} 22. Rxb7 {[%clk 0:01:21]}  Rxg4 {[%clk 0:00:57]} 23. Rxc7 {[%clk 0:01:11]}  Rf8 {[%clk 0:00:54]} 24. Ree7 {[%clk 0:00:52]}  Bf7 {[%clk 0:00:33]} 25. c4 {[%clk 0:00:39]}  h5 {[%clk 0:00:24]} 26. Kh2 {[%clk 0:00:13]}  Rh4+ {[%clk 0:00:19]} 27. Kg3 {[%clk 0:00:13]}  Rg4+ {[%clk 0:00:19]} 28. Kh3 {[%clk 0:00:14]}  g5 {[%clk 0:00:09]} 29. Bd5 {[%clk 0:00:08]}  Rh4+ {[%clk 0:00:08]} 30. Kg2 {[%clk 0:00:07]}  Rg4+ {[%clk 0:00:08]} 31. Kf1 {[%clk 0:00:07]}  Rf4 {[%clk 0:00:06]} 32. Rxf7 {[%clk 0:00:08]}  R8xf7 {[%clk 0:00:06]} 33. Rxf7 {[%clk 0:00:08]}  Rxf7 {[%clk 0:00:06]} 34. c5 {[%clk 0:00:08]}  Kf8 {[%clk 0:00:06]} 35. Bxf7 {[%clk 0:00:08]}  Kxf7 {[%clk 0:00:07]} 36. c6 {[%clk 0:00:09]}  Ke7 {[%clk 0:00:07]} 37. d5 {[%clk 0:00:09]}  Kd6 {[%clk 0:00:08]} 38. Kg2 {[%clk 0:00:09]}  g4 {[%clk 0:00:08]} 39. Kg3 {[%clk 0:00:09]}  a5 {[%clk 0:00:08]} 40. Kh4 {[%clk 0:00:09]}  a4 {[%clk 0:00:08]} 41. a3 {[%clk 0:00:10]}  Kxd5 {[%clk 0:00:08]} 42. c7 {[%clk 0:00:09]}  Kc4 {[%clk 0:00:09]} 43. c8=Q+ {[%clk 0:00:10]}  Kb3 {[%clk 0:00:10]} 44. Qc5 {[%clk 0:00:10]}  Ka2 {[%clk 0:00:09]} 45. Qb4 {[%clk 0:00:11]}  Ka1 {[%clk 0:00:09]} 46. Qxa4 {[%clk 0:00:11]}  Ka2 {[%clk 0:00:09]} 47. Qb4 {[%clk 0:00:11]}  Ka1 {[%clk 0:00:09]} 48. Kg3 {[%clk 0:00:10]}  h4+ {[%clk 0:00:09]} 49. Kxh4 {[%clk 0:00:09]}  g3 {[%clk 0:00:09]} 50. Kxg3 {[%clk 0:00:09]}  Ka2 {[%clk 0:00:10]} 51. a4 {[%clk 0:00:10]}  Ka1 {[%clk 0:00:10]} 52. a5 {[%clk 0:00:11]} 1-0


[Site "https://www.chess.com"]

[Event "Titled Tuesday Blitz December 13 Late 2022"]
[White "Goroshkov, Maksym"]
[Black "Samsonkin, Artiom"]
[WhiteFideId "14142716"]
[BlackFideId "13503111"]
[WhiteElo "2258"]
[BlackElo "2524"]
[Result "1-0"]
[Round "10"]
[TimeControl "180+1"]
[Date "2022.12.13"]
[WhiteClock "0:01:00"]
[BlackClock "0:00:05"]

1. e4 {[%clk 0:02:59]}  c5 {[%clk 0:02:58]} 2. d4 {[%clk 0:02:57]}  cxd4 {[%clk 0:02:58]} 3. c3 {[%clk 0:02:58]}  d5 {[%clk 0:02:49]} 4. exd5 {[%clk 0:02:56]}  Qxd5 {[%clk 0:02:45]} 5. cxd4 {[%clk 0:02:57]}  e5 {[%clk 0:02:44]} 6. Nf3 {[%clk 0:02:54]}  Nc6 {[%clk 0:02:42]} 7. Nc3 {[%clk 0:02:53]}  Bb4 {[%clk 0:02:42]} 8. Be2 {[%clk 0:02:49]}  e4 {[%clk 0:02:06]} 9. O-O {[%clk 0:02:31]}  Bxc3 {[%clk 0:02:04]} 10. bxc3 {[%clk 0:02:32]}  exf3 {[%clk 0:02:03]} 11. Bxf3 {[%clk 0:02:33]}  Qd8 {[%clk 0:01:48]} 12. Re1+ {[%clk 0:02:26]}  Nce7 {[%clk 0:01:32]} 13. Ba3 {[%clk 0:02:24]}  Qa5 {[%clk 0:00:58]} 14. Bb4 {[%clk 0:02:20]}  Qg5 {[%clk 0:00:48]} 15. d5 {[%clk 0:01:57]}  Bh3 {[%clk 0:00:45]} 16. d6 {[%clk 0:01:53]}  O-O-O {[%clk 0:00:40]} 17. Qa4 {[%clk 0:01:29]}  Ng6 {[%clk 0:00:14]} 18. Qxa7 {[%clk 0:01:26]}  Qb5 {[%clk 0:00:09]} 19. gxh3 {[%clk 0:01:18]}  Nh4 {[%clk 0:00:09]} 20. Qa8+ {[%clk 0:01:09]}  Kd7 {[%clk 0:00:09]} 21. Qxb7+ {[%clk 0:01:08]}  Qxb7 {[%clk 0:00:09]} 22. Bxb7 {[%clk 0:01:09]}  Rb8 {[%clk 0:00:05]} 23. Bh1 {[%clk 0:01:00]} 1-0


[Site "https://www.chess.com"]